bitfinex/quotes_BTCUSD_20240701
["timestamp","ask_amount","ask_price","bid_price","bid_amount"]
[1719845323416,0.14593453,62889.0,62888.0,0.000924]
[1719845324239,0.00793453,62889.0,62888.0,0.000924]
[1719845324580,0.063,62892.0,62888.0,0.000924]
[1719845324781,0.00793453,62889.0,62888.0,0.000924]
[1719845325192,0.00796142,62889.0,62888.0,0.000924]
[1719845325602,0.014,62893.0,62888.0,0.000924]
[1719845325833,0.00795653,62889.0,62888.0,0.000924]
[1719845326042,0.011,62889.0,62888.0,0.000924]
[1719845326286,0.01895653,62889.0,62888.0,0.00410401]
[1719845326487,0.00795653,62889.0,62888.0,0.00410401]
[1719845326691,0.01795653,62889.0,62888.0,0.00410401]
[1719845326895,0.01,62889.0,62888.0,0.00410401]
[1719845327495,0.01786387,62889.0,62888.0,0.00410401]
[1719845328069,0.01786387,62889.0,62888.0,0.159755]
[1719845328267,0.01,62889.0,62888.0,0.18293489]
[1719845328471,0.01,62889.0,62888.0,0.159755]
[1719845329487,0.226,62896.0,62888.0,0.159755]
[1719845329689,0.006,62889.0,62888.0,0.000924]
[1719845329890,0.012,62889.0,62888.0,0.000924]
[1719845330113,0.40833898,62896.0,62888.0,0.000924]
[1719845330507,0.027,62889.0,62888.0,0.000924]
[1719845331151,0.014,62889.0,62888.0,0.000924]
[1719845332406,0.1532,62889.0,62888.0,0.000924]
[1719845332825,0.1392,62889.0,62888.0,0.000924]
[1719845333028,0.1532,62889.0,62888.0,0.000924]
[1719845333449,0.1392,62889.0,62888.0,0.000924]
[1719845333832,0.1532,62889.0,62888.0,0.000924]
[1719845334032,0.1662,62889.0,62888.0,0.000924]
[1719845334464,0.34515898,62889.0,62888.0,0.000924]
[1719845334669,0.36515898,62889.0,62888.0,0.000924]
[1719845334924,0.34853898,62889.0,62888.0,0.000924]
[1719845335438,0.32853898,62889.0,62888.0,0.000924]
[1719845336064,0.027,62889.0,62888.0,0.000924]
[1719845336646,0.014,62889.0,62888.0,0.000924]
[1719845337095,0.028,62889.0,62888.0,0.000924]
[1719845337446,0.014,62889.0,62888.0,0.000924]
[1719845337850,0.026,62889.0,62888.0,0.000924]
[1719845338606,0.0865,62889.0,62888.0,0.000924]
[1719845340118,0.0745,62889.0,62888.0,0.000924]
[1719845340327,0.0885,62889.0,62888.0,0.000924]
[1719845340566,0.1677,62889.0,62888.0,0.000924]
[1719845340738,0.36088898,62889.0,62888.0,0.000924]
[1719845341010,0.36011269,62889.0,62888.0,0.000924]
[1719845341213,0.34926269,62889.0,62888.0,0.000924]
[1719845341415,0.35003898,62889.0,62888.0,0.000924]
[1719845341540,0.35830419,62889.0,62888.0,0.000924]
[1719845341748,0.35752852,62889.0,62888.0,0.000924]
[1719845341977,0.37152854,62889.0,62888.0,0.000924]
[1719845342231,0.35752854,62889.0,62888.0,0.000924]
[1719845342552,0.47128139,62889.0,62888.0,0.000924]
[1719845342969,0.44328139,62889.0,62888.0,0.000924]
[1719845343332,0.45728139,62889.0,62888.0,0.000924]
[1719845343943,0.44328139,62889.0,62888.0,0.000924]
[1719845344189,0.88028139,62889.0,62888.0,0.000924]
[1719845344322,0.99428139,62889.0,62888.0,0.00086135]
[1719845344521,1.19424702,62889.0,62888.0,0.00086135]
[1719845344728,1.24552804,62889.0,62888.0,0.00086135]
[1719845344935,1.23152804,62889.0,62888.0,0.00086135]
[1719845345537,1.21752804,62889.0,62888.0,0.00086135]
[1719845346035,1.23152804,62889.0,62888.0,0.00086135]
[1719845346188,0.68049417,62889.0,62888.0,0.00086135]
[1719845346396,0.46653219,62889.0,62888.0,0.00086135]
[1719845346573,0.66649417,62889.0,62888.0,0.00086135]
[1719845346774,0.43753219,62889.0,62888.0,0.00086135]
[1719845346970,0.42926557,62889.0,62888.0,0.00086135]
[1719845347326,0.41603898,62889.0,62888.0,0.00086135]
[1719845347776,0.54397969,62889.0,62888.0,0.00086135]
[1719845348184,0.52997969,62889.0,62888.0,0.00086135]
[1719845348385,0.95720418,62889.0,62888.0,0.00086135]
[1719845348586,0.78846999,62889.0,62888.0,0.00086135]
[1719845349202,0.77446999,62889.0,62888.0,0.00086135]
[1719845349403,0.78846999,62889.0,62888.0,0.00086135]
[1719845349605,0.98846999,62889.0,62888.0,0.00086135]
[1719845349806,1.00246999,62889.0,62888.0,0.00086135]
[1719845350221,0.98846999,62889.0,62888.0,0.00086135]
[1719845350438,1.00246999,62889.0,62888.0,0.00086135]
[1719845350688,1.00247053,62889.0,62888.0,0.00086135]
[1719845350803,0.80247053,62889.0,62888.0,0.00086135]
[1719845351429,1.02847053,62889.0,62888.0,0.00086135]
[1719845351635,1.01447053,62889.0,62888.0,0.00086135]
[1719845352018,1.02847053,62889.0,62888.0,0.00086135]
[1719845352456,0.81447053,62889.0,62888.0,0.00086135]
[1719845352658,0.46052982,62889.0,62888.0,0.00086135]
[1719845352874,0.48052982,62889.0,62888.0,0.00086135]
[1719845353094,0.43830533,62889.0,62888.0,0.00086135]
[1719845353297,0.19033898,62889.0,62888.0,0.00086135]
[1719845353535,0.17633898,62889.0,62888.0,0.00086135]
[1719845354066,0.19033898,62889.0,62888.0,0.00086135]
[1719845354806,0.028,62889.0,62888.0,0.00086135]
[1719845355420,0.014,62889.0,62888.0,0.00086135]
[1719845356311,0.014,62889.0,62888.0,0.16866135]
[1719845356506,0.00084,62900.0,62888.0,0.14866135]
[1719845356746,0.16233898,62899.0,62888.0,0.14866135]
[1719845356895,0.014,62889.0,62888.0,0.00086135]
[1719845359382,0.028,62889.0,62888.0,0.00086135]
[1719845360348,0.17633898,62889.0,62888.0,0.00086135]
[1719845361247,0.16233898,62889.0,62888.0,0.00086135]
[1719845361472,0.38833898,62889.0,62888.0,0.00086135]
[1719845361657,0.41556262,62889.0,62888.0,0.00086135]
[1719845361829,0.42956262,62889.0,62888.0,0.00086135]
[1719845362032,0.028,62889.0,62888.0,0.00086135]
[1719845362231,0.226,62894.0,62888.0,0.00086135]
[1719845362430,0.014,62889.0,62888.0,0.00086135]
[1719845363159,0.28147099,62893.0,62888.0,0.00086135]
[1719845363360,0.15125001,62892.0,62888.0,0.00086135]
[1719845363748,0.2946939,62891.0,62888.0,0.00086135]
[1719845363916,0.014,62889.0,62888.0,0.00086135]
[1719845364115,0.02722291,62889.0,62888.0,0.00086135]
[1719845364514,0.01322291,62889.0,62888.0,0.00086135]
[1719845364718,0.11913201,62889.0,62888.0,0.00086135]
[1719845364950,0.14635492,62889.0,62888.0,0.00086135]
[1719845365750,0.01322291,62889.0,62888.0,0.00086135]
[1719845365961,0.04122291,62889.0,62888.0,0.00086135]
[1719845366308,0.02722291,62889.0,62888.0,0.00086135]
[1719845366514,0.56354035,62889.0,62888.0,0.00086135]
[1719845366691,0.71005011,62889.0,62888.0,0.00086135]
[1719845366899,0.40233898,62889.0,62888.0,0.00086135]
[1719845367129,0.55856058,62889.0,62888.0,0.00086135]
[1719845367547,0.41556268,62889.0,62888.0,0.00086135]
[1719845367953,0.49723215,62889.0,62888.0,0.00086135]
[1719845368583,0.51123215,62889.0,62888.0,0.00086135]
[1719845368870,0.7378548,62889.0,62888.0,0.00086135]
[1719845369099,0.7238548,62889.0,62888.0,0.00086135]
[1719845369482,0.88118844,62889.0,62888.0,0.00086135]
[1719845369666,1.0432828,62889.0,62888.0,0.00086135]
[1719845369865,1.0292828,62889.0,62888.0,0.00086135]
[1719845370249,1.0432828,62889.0,62888.0,0.00086135]
[1719845370838,1.0292828,62889.0,62888.0,0.00086135]
[1719845370983,1.2292828,62889.0,62888.0,0.00086135]
[1719845371244,1.2432828,62889.0,62888.0,0.00086135]
[1719845371411,1.2292828,62889.0,62888.0,0.00086135]
[1719845371609,1.2152828,62889.0,62888.0,0.00086135]
[1719845372015,1.2292828,62889.0,62888.0,0.00086135]
[1719845372216,1.0292828,62889.0,62888.0,0.00086135]
[1719845372464,1.16927035,62889.0,62888.0,0.00086135]
[1719845372653,1.02916984,62889.0,62888.0,0.00086135]
[1719845372876,1.01516984,62889.0,62888.0,0.00086135]
[1719845373055,1.02916984,62889.0,62888.0,0.00086135]
[1719845373401,1.22916984,62889.0,62888.0,0.00086135]
[1719845373621,1.21516984,62889.0,62888.0,0.00086135]
[1719845373801,1.22916984,62889.0,62888.0,0.00086135]
[1719845374134,0.80316984,62889.0,62888.0,0.00086135]
[1719845374333,1.02916984,62889.0,62888.0,0.00086135]
[1719845374643,0.84316984,62889.0,62888.0,0.00086135]
[1719845375435,1.04316984,62889.0,62888.0,0.00086135]
[1719845375810,1.02935566,62889.0,62888.0,0.00086135]
[1719845376157,1.04335566,62889.0,62888.0,0.00086135]
[1719845376363,1.02935566,62889.0,62888.0,0.00086135]
[1719845376784,1.04335566,62889.0,62888.0,0.00086135]
[1719845377004,0.84335566,62889.0,62888.0,0.00086135]
[1719845377436,1.04335566,62889.0,62888.0,1.00086135]
[1719845378656,0.84335566,62889.0,62888.0,1.00086135]
[1719845378876,0.77004394,62889.0,62888.0,1.00086135]
[1719845379028,0.84322246,62889.0,62888.0,1.00086135]
[1719845379426,0.7758175,62889.0,62888.0,1.00086135]
[1719845380758,0.7618175,62889.0,62888.0,1.00086135]
[1719845381091,0.9758175,62889.0,62888.0,1.00086135]
[1719845381291,1.1758175,62889.0,62888.0,1.00086135]
[1719845381680,0.9618175,62889.0,62888.0,1.00086135]
[1719845382011,1.25742123,62889.0,62888.0,1.00086135]
[1719845382144,1.33058851,62889.0,62888.0,1.00086135]
[1719845382541,1.31658851,62889.0,62888.0,1.00086135]
[1719845383372,1.13058851,62889.0,62888.0,1.00086135]
[1719845383972,1.33058851,62889.0,62888.0,1.00086135]
[1719845384178,1.31658851,62889.0,62888.0,1.00086135]
[1719845384624,1.31675644,62889.0,62888.0,1.00086135]
[1719845385271,1.25168731,62889.0,62888.0,1.00086135]
[1719845385491,1.31683655,62889.0,62888.0,1.00086135]
[1719845385927,0.76366198,62887.0,62886.0,0.00634886]
[1719845386132,1.06222675,62887.0,62886.0,0.00634886]
[1719845386987,1.12241628,62887.0,62886.0,0.00634886]
[1719845387707,1.15041628,62887.0,62886.0,0.00634886]
[1719845388574,1.15104322,62887.0,62886.0,0.00634886]
[1719845388772,1.31337693,62887.0,62886.0,0.00634886]
[1719845390042,1.28537693,62887.0,62886.0,0.00634886]
[1719845390530,1.29937693,62887.0,62886.0,0.00634886]
[1719845390694,1.31337693,62887.0,62886.0,0.00634886]
[1719845391621,1.23933467,62887.0,62886.0,0.00634886]
[1719845391832,1.31321899,62887.0,62886.0,0.00634886]
[1719845392150,1.31325379,62887.0,62886.0,0.00634886]
[1719845394597,1.23933467,62887.0,62886.0,0.00634886]
[1719845394802,1.31272803,62887.0,62886.0,0.00634886]
[1719845398086,1.31272811,62887.0,62886.0,0.00634886]
[1719845398484,2.19942811,62887.0,62886.0,0.00634886]
[1719845398814,2.27877115,62887.0,62886.0,0.00634886]
[1719845399562,2.26477115,62887.0,62886.0,0.00634886]
[1719845399737,2.25077115,62887.0,62886.0,0.00634886]
[1719845400274,2.49929168,62887.0,62886.0,0.00634886]
[1719845400657,2.26477115,62887.0,62886.0,0.00634886]
[1719845400852,2.26510653,62887.0,62886.0,0.0062937]
[1719845400987,2.25110653,62887.0,62886.0,0.0062937]
[1719845401184,2.08340653,62887.0,62886.0,0.0062937]
[1719845401432,2.10940653,62887.0,62886.0,0.0062937]
[1719845401638,2.32340653,62887.0,62886.0,0.0062937]
[1719845401843,1.12360561,62887.0,62886.0,0.0062937]
[1719845402043,1.13760561,62887.0,62886.0,0.0062937]
[1719845402441,0.93760561,62887.0,62886.0,0.0062937]
[1719845402660,0.92360561,62887.0,62886.0,0.0062937]
[1719845402863,0.98922973,62887.0,62886.0,0.0062937]
[1719845403196,0.98322973,62887.0,62886.0,0.1469937]
[1719845403385,0.26422973,62887.0,62886.0,0.1469937]
[1719845403592,0.08789075,62887.0,62886.0,0.1469937]
[1719845403824,0.00084,62891.0,62888.0,0.0607]
[1719845404024,0.00084,62891.0,62886.0,0.0062937]
[1719845404025,0.00084,62891.0,62890.0,0.0658]
[1719845404154,0.00084,62891.0,62890.0,0.1489]
[1719845404354,0.00084,62891.0,62890.0,0.1689]
[1719845404942,0.00084,62891.0,62890.0,0.15207982]
[1719845405357,0.00084,62891.0,62890.0,0.1489]
[1719845405557,0.00784,62891.0,62890.0,0.1489]
[1719845406767,0.00084,62891.0,62890.0,0.1489]
[1719845407203,0.00684,62891.0,62890.0,0.1489]
[1719845407980,0.00284,62891.0,62890.0,0.1489]
[1719845408380,0.12189624,62891.0,62890.0,0.1489]
[1719845408607,0.12589624,62891.0,62890.0,0.1489]
[1719845408808,0.00684,62891.0,62890.0,0.1489]
[1719845409219,0.00084,62891.0,62890.0,0.1489]
[1719845409824,0.00184,62891.0,62890.0,0.1489]
[1719845410027,0.02,62890.0,62886.0,0.1463937]
[1719845410190,0.16288004,62889.0,62886.0,0.1463937]
[1719845410391,0.07934304,62887.0,62886.0,0.0062937]
[1719845410614,0.38456206,62887.0,62886.0,0.0062937]
[1719845411100,0.14288004,62888.0,62886.0,0.0062937]
[1719845411383,0.30521902,62888.0,62886.0,0.0062937]
[1719845411673,0.014,62887.0,62886.0,0.0062937]
[1719845412016,0.30521902,62888.0,62886.0,0.0062937]
[1719845412417,0.31921902,62888.0,62886.0,0.0062937]
[1719845412828,0.014,62888.0,62887.0,0.1433]
[1719845414815,0.028,62888.0,62887.0,0.1443]
[1719845415348,0.014,62888.0,62887.0,0.1443]
[1719845415548,0.028,62888.0,62887.0,0.1443]
[1719845415756,0.028,62888.0,62887.0,0.001]
[1719845415970,0.36464762,62888.0,62887.0,0.001]
[1719845416169,0.22175249,62888.0,62887.0,0.001]
[1719845416378,0.23575249,62888.0,62887.0,0.001]
[1719845417018,0.02,62887.0,62886.0,0.0062937]
[1719845417225,0.32933471,62887.0,62886.0,0.0062937]
[1719845417522,0.31759559,62887.0,62886.0,0.0062937]
[1719845417954,0.31759574,62887.0,62886.0,0.0062937]
[1719845418972,0.33159574,62887.0,62886.0,0.0062937]
[1719845419970,0.18460001,62887.0,62886.0,0.0062937]
[1719845420519,0.17633898,62887.0,62886.0,0.0062937]
[1719845422096,0.50530201,62887.0,62886.0,0.0062937]
[1719845422322,0.58180201,62887.0,62886.0,0.0062937]
[1719845422535,0.72850987,62887.0,62886.0,0.0062937]
[1719845422885,0.85688059,62887.0,62886.0,0.0062937]
[1719845423126,0.87088059,62887.0,62886.0,0.0062937]
[1719845423341,1.25868372,62887.0,62886.0,0.0062937]
[1719845423539,1.42638372,62887.0,62886.0,0.0062937]
[1719845423745,1.78883318,62887.0,62886.0,0.0062937]
[1719845423892,1.83738771,62887.0,62886.0,0.0062937]
[1719845424911,1.62338771,62887.0,62886.0,0.0062937]
[1719845425114,1.32731699,62887.0,62886.0,0.0062937]
[1719845425308,1.34131699,62887.0,62886.0,0.0062937]
[1719845425532,1.52731699,62887.0,62886.0,0.0062937]
[1719845425870,1.34131699,62887.0,62886.0,0.0062937]
[1719845426082,1.32731699,62887.0,62886.0,0.0062937]
[1719845426295,1.5036507,62887.0,62886.0,0.0062937]
[1719845426489,0.78115501,62887.0,62886.0,0.0062937]
[1719845426691,0.62360048,62887.0,62886.0,0.0062937]
[1719845426900,0.17060441,62887.0,62886.0,0.0062937]
[1719845427307,0.18460441,62887.0,62886.0,0.0062937]
[1719845428047,0.20760441,62887.0,62886.0,0.0062937]
[1719845428246,0.46928116,62887.0,62886.0,0.0062937]
[1719845428492,0.56928116,62887.0,62886.0,0.0062937]
[1719845428692,0.58328116,62887.0,62886.0,0.0062937]
[1719845428845,0.56928116,62887.0,62886.0,0.0062937]
[1719845429315,0.54928116,62887.0,62886.0,0.0062937]
[1719845429911,0.54928159,62887.0,62886.0,0.0062937]
[1719845430111,0.38694788,62887.0,62886.0,0.0062937]
[1719845430379,0.40094788,62887.0,62886.0,0.0062937]
[1719845430870,0.32160484,62887.0,62886.0,0.0062937]
[1719845431074,0.19860484,62887.0,62886.0,0.0880937]
[1719845431245,0.34147177,62887.0,62886.0,0.0880937]
[1719845431478,0.19860484,62887.0,62886.0,0.0880937]
[1719845431713,0.20854909,62887.0,62886.0,0.0880937]
[1719845432363,0.03794425,62887.0,62886.0,0.0880937]
[1719845433023,0.15697977,62887.0,62886.0,0.0880937]
[1719845433226,0.03794425,62887.0,62886.0,0.0880937]
[1719845433446,0.17228323,62887.0,62886.0,0.0880937]
[1719845433843,0.20028323,62887.0,62886.0,0.0880937]
[1719845433984,0.18628323,62887.0,62886.0,0.0880937]
[1719845435187,0.02394425,62887.0,62886.0,0.0880937]
[1719845435589,0.02394425,62887.0,62886.0,0.1734937]
[1719845435795,0.03794425,62887.0,62886.0,0.1734937]
[1719845436177,0.02394425,62887.0,62886.0,0.1734937]
[1719845436515,0.02394425,62887.0,62886.0,0.65372563]
[1719845436720,0.014,62887.0,62886.0,0.65372563]
[1719845436917,0.028,62887.0,62886.0,0.65372563]
[1719845437274,0.00084,62891.0,62886.0,0.65372563]
[1719845437275,0.00084,62891.0,62890.0,0.02]
[1719845437467,0.00084,62891.0,62890.0,1.27620698]
[1719845437665,0.00084,62900.0,62899.0,0.02]
[1719845437868,0.00084,62900.0,62899.0,0.16]
[1719845439726,0.00084,62900.0,62899.0,0.14]
[1719845440123,0.00684,62900.0,62899.0,0.141]
[1719845440987,0.01984,62900.0,62899.0,0.142]
[1719845441307,0.0322985,62900.0,62899.0,0.142]
[1719845441506,0.01984,62900.0,62899.0,0.142]
[1719845441708,0.01984,62900.0,62899.0,0.0814]
[1719845442139,0.0322985,62900.0,62899.0,0.0814]
[1719845442749,0.0322985,62900.0,62899.0,0.1651]
[1719845442949,0.01984,62900.0,62899.0,0.1651]
[1719845443957,0.01984,62900.0,62899.0,0.3272641]
[1719845444139,0.01984,62900.0,62899.0,0.6452341]
[1719845444336,0.01984,62900.0,62899.0,1.3892041]
[1719845444563,0.01984,62900.0,62899.0,1.86951308]
[1719845444830,0.01984,62900.0,62899.0,1.86633398]
[1719845445586,0.01984,62900.0,62899.0,1.86533398]
[1719845445587,0.00684,62900.0,62899.0,1.86533398]
[1719845445817,0.00084,62900.0,62899.0,1.86433398]
[1719845445981,0.00184,62900.0,62899.0,1.86433398]
[1719845446189,0.00084,62900.0,62899.0,1.86633398]
[1719845446594,0.00084,62900.0,62899.0,1.86933398]
[1719845446820,0.00076607,62900.0,62899.0,1.86733398]
[1719845447226,0.00076607,62900.0,62899.0,1.87733398]
[1719845450697,0.08018304,62929.0,62923.0,0.01]
[1719845450953,0.08018304,62929.0,62921.0,0.0438]
[1719845450954,0.08018304,62929.0,62928.0,0.02]
[1719845450955,0.00084,62929.0,62928.0,0.02]
[1719845451183,0.00084,62929.0,62928.0,1.02069598]
[1719845451857,0.00084,62929.0,62928.0,1.08669598]
[1719845452311,0.00084,62929.0,62928.0,0.924357]
[1719845452505,0.00084,62929.0,62928.0,0.288711]
[1719845453288,0.00884,62929.0,62928.0,0.288711]
[1719845453788,0.00884,62929.0,62928.0,0.1298]
[1719845454018,0.00084,62929.0,62928.0,0.1298]
[1719845454193,0.00084,62929.0,62928.0,0.1338]
[1719845454392,0.01184,62929.0,62928.0,0.1348]
[1719845454605,0.01184,62929.0,62928.0,0.1338]
[1719845455016,0.01484,62929.0,62928.0,0.1338]
[1719845455222,0.00084,62929.0,62928.0,0.1338]
[1719845455763,0.00384,62929.0,62928.0,0.1338]
[1719845456215,0.00384,62929.0,62928.0,0.1298]
[1719845456613,0.00384,62929.0,62928.0,0.1338]
[1719845456814,0.00384,62929.0,62928.0,0.292711]
[1719845457052,0.00384,62929.0,62928.0,0.606534]
[1719845457444,0.00084,62929.0,62928.0,0.288711]
[1719845457604,0.00084,62929.0,62928.0,0.292711]
[1719845458550,0.00284,62929.0,62928.0,0.610534]
[1719845458753,0.00284,62929.0,62928.0,0.2958885]
[1719845458878,0.00284,62929.0,62928.0,0.292711]
[1719845459077,0.00484,62929.0,62928.0,0.292711]
[1719845459291,0.00484,62929.0,62928.0,0.0856]
[1719845459496,0.00484,62929.0,62928.0,0.1639]
[1719845460555,0.00484,62929.0,62928.0,0.1599]
[1719845460913,0.00484,62929.0,62928.0,0.1649]
[1719845461109,0.00084,62929.0,62928.0,0.1649]
[1719845461382,0.00684,62929.0,62928.0,0.1659]
[1719845461506,0.00684,62929.0,62928.0,0.1609]
[1719845461712,0.00084,62929.0,62928.0,0.1599]
[1719845461933,0.00684,62929.0,62928.0,0.1619]
[1719845462756,0.00684,62929.0,62928.0,0.16507779]
[1719845462961,0.00684,62929.0,62928.0,0.64181179]
[1719845463585,0.00684,62929.0,62928.0,0.838634]
[1719845463996,0.00684,62929.0,62928.0,0.638634]
[1719845464641,0.00684,62929.0,62928.0,0.637634]
[1719845464799,0.00684,62929.0,62928.0,0.006]
[1719845464998,0.00684,62929.0,62928.0,0.026]
[1719845465199,0.02155374,62929.0,62928.0,0.026]
[1719845465399,0.00684,62929.0,62928.0,0.026]
[1719845465806,0.00684,62929.0,62928.0,0.02817775]
[1719845465807,0.00084,62929.0,62928.0,0.02817775]
[1719845466014,0.00084,62929.0,62928.0,0.025]
[1719845466618,0.00284,62929.0,62928.0,0.025]
[1719845467648,0.00284,62929.0,62928.0,0.02]
[1719845468051,0.00284,62929.0,62928.0,0.025]
[1719845468473,0.00284,62929.0,62928.0,0.02]
[1719845468684,0.00284,62929.0,62922.0,0.02]
[1719845468906,0.00284,62929.0,62928.0,0.005]
[1719845469252,0.00284,62929.0,62923.0,0.02]
[1719845469553,0.00284,62929.0,62922.0,0.178831]
[1719845469758,0.00084,62929.0,62923.0,0.02]
[1719845469926,0.00084,62929.0,62926.0,0.02]
[1719845470254,0.00284,62929.0,62926.0,0.003178]
[1719845470455,0.00084,62929.0,62926.0,0.023178]
[1719845470873,0.00084,62929.0,62926.0,0.003178]
[1719845471077,0.00084,62929.0,62928.0,0.005]
[1719845471422,0.00084,62929.0,62922.0,0.178831]
[1719845471423,0.01384,62929.0,62923.0,0.001]
[1719845471972,0.02184,62929.0,62926.0,0.021]
[1719845472151,0.02184,62929.0,62928.0,0.097]
[1719845472355,0.02184,62929.0,62928.0,1.11829598]
[1719845472698,0.01384,62929.0,62928.0,1.11829598]
[1719845472831,0.02184,62929.0,62928.0,1.11829598]
[1719845473233,0.03584,62929.0,62928.0,1.11829598]
[1719845473635,0.00884,62929.0,62928.0,0.80047298]
[1719845473836,0.00884,62929.0,62928.0,0.48264998]
[1719845474045,0.00884,62929.0,62928.0,0.32373898]
[1719845474269,0.00884,62929.0,62928.0,0.80047298]
[1719845474474,0.00084,62929.0,62928.0,0.80047298]
[1719845475445,0.00084,62929.0,62928.0,1.31829598]
[1719845475819,0.00084,62929.0,62928.0,1.31929598]
[1719845476370,0.00084,62929.0,62928.0,1.45140519]
[1719845476680,0.00084,62929.0,62928.0,1.76922819]
[1719845476880,0.00084,62929.0,62928.0,1.86922819]
[1719845477108,0.00084,62929.0,62928.0,2.48274119]
[1719845477311,0.00084,62929.0,62928.0,2.50574119]
[1719845477991,0.00084,62929.0,62928.0,2.50474119]
[1719845478339,0.0084,62950.0,62949.0,0.1424]
[1719845478579,0.0084,62950.0,62949.0,0.91277347]
[1719845478783,0.0084,62950.0,62949.0,1.03049047]
[1719845479195,0.0084,62950.0,62949.0,1.02731398]
[1719845479644,0.0154,62950.0,62949.0,1.02831398]
[1719845481637,0.0084,62950.0,62949.0,1.02731398]
[1719845481853,0.0144,62950.0,62949.0,1.02831398]
[1719845482060,0.0144,62950.0,62949.0,1.67809738]
[1719845482350,0.0144,62950.0,62949.0,1.67909738]
[1719845482759,0.0154,62950.0,62949.0,1.48809738]
[1719845483112,0.0154,62950.0,62949.0,1.35603098]
[1719845483726,0.0154,62950.0,62949.0,0.011]
[1719845483939,0.0084,62950.0,62947.0,0.02]
[1719845484140,0.02070932,62950.0,62949.0,0.02]
[1719845484413,0.0084,62950.0,62949.0,0.02]
[1719845484668,0.0084,62950.0,62948.0,0.00317664]
[1719845484857,0.0084,62950.0,62945.0,0.02]
[1719845485071,0.0821,62948.0,62947.0,0.02]
[1719845485412,0.09440477,62948.0,62947.0,0.02]
[1719845486044,0.09440477,62948.0,62945.0,0.02]
[1719845486281,0.09440477,62948.0,62941.0,0.158878]
[1719845486282,0.09440477,62948.0,62947.0,0.02]
[1719845487291,0.09440477,62948.0,62945.0,0.02]
[1719845487691,0.09440477,62948.0,62946.0,0.02]
[1719845487883,0.01230477,62948.0,62940.0,0.17672857]
[1719845488231,0.0603,62947.0,62940.0,0.158831]
[1719845488449,0.0816,62946.0,62940.0,0.158831]
[1719845488826,0.0123198,62945.0,62940.0,0.158831]
[1719845489028,0.1384,62943.0,62940.0,0.001]
[1719845489348,0.24168202,62944.0,62928.0,0.4716]
[1719845489349,0.0612,62939.0,62928.0,0.4716]
[1719845489514,0.0612,62939.0,62928.0,0.01732401]
[1719845489714,0.0612,62939.0,62924.0,0.178831]
[1719845489715,0.01228299,62938.0,62925.0,0.02]
[1719845489913,0.01228299,62938.0,62924.0,0.178831]
[1719845490127,0.24168202,62937.0,62924.0,0.158831]
[1719845490327,0.0779,62934.0,62924.0,0.158831]
[1719845490528,0.07355015,62933.0,62924.0,0.158831]
[1719845490843,0.30373898,62932.0,62917.0,0.02]
[1719845491070,0.076,62930.0,62917.0,0.02]
[1719845491343,0.0654,62929.0,62917.0,0.02]
[1719845491507,0.07762854,62929.0,62917.0,0.02]
[1719845491708,0.07762854,62929.0,62916.0,0.4716]
[1719845491709,0.07762854,62929.0,62919.0,0.02]
[1719845493149,0.08362854,62929.0,62919.0,0.021]
[1719845493471,0.08362854,62929.0,62924.0,0.001]
[1719845494092,0.08362854,62929.0,62919.0,0.021]
[1719845494413,0.09162854,62929.0,62922.0,0.02]
[1719845494613,0.0794,62929.0,62925.0,0.02]
[1719845494814,0.0122011,62928.0,62923.0,0.00317807]
[1719845495018,0.0122011,62928.0,62925.0,0.02]
[1719845495247,0.0122011,62928.0,62924.0,0.001]
[1719845495786,0.0122011,62928.0,62919.0,0.02]
[1719845496065,0.0122011,62928.0,62925.0,0.001]
[1719845496462,0.0122011,62928.0,62924.0,0.001]
[1719845496684,0.0122011,62928.0,62921.0,0.02]
[1719845496898,0.0122011,62928.0,62924.0,0.001]
[1719845496899,0.0262011,62928.0,62924.0,0.001]
[1719845497561,0.0342011,62928.0,62924.0,0.001]
[1719845498511,0.0202011,62928.0,62919.0,0.001]
[1719845498970,0.0342011,62928.0,62925.0,0.001]
[1719845499379,0.07934304,62926.0,62919.0,0.001]
[1719845499532,0.0609,62924.0,62919.0,0.001]
[1719845499770,0.0768,62923.0,62919.0,0.001]
[1719845499954,0.08900394,62923.0,62919.0,0.001]
[1719845500161,0.08900394,62923.0,62911.0,0.02]
[1719845500370,0.13907169,62923.0,62908.0,0.178831]
[1719845500565,0.0768,62923.0,62908.0,0.178831]
[1719845500762,0.0768,62923.0,62909.0,0.02]
[1719845501187,0.01221305,62922.0,62909.0,0.02]
[1719845501582,0.01221305,62922.0,62908.0,0.158831]
[1719845501781,0.0768,62923.0,62908.0,0.158831]
[1719845502184,0.01211396,62922.0,62908.0,0.158831]
[1719845502990,0.064,62921.0,62908.0,0.158831]
[1719845503184,0.064,62917.0,62908.0,0.158831]
[1719845503385,0.064,62917.0,62911.0,0.001]
[1719845503589,0.01207414,62916.0,62911.0,0.001]
[1719845503813,0.01207414,62916.0,62908.0,0.158831]
[1719845504200,0.01207414,62916.0,62908.0,0.159831]
[1719845504830,0.01207414,62916.0,62908.0,0.158831]
[1719845505203,0.01207414,62916.0,62908.0,0.178831]
[1719845505204,0.01607414,62916.0,62908.0,0.178831]
[1719845505921,0.01607414,62916.0,62911.0,0.02]
[1719845506348,0.014,62916.0,62911.0,0.02]
[1719845506668,0.00998897,62915.0,62911.0,0.02]
[1719845507423,0.014,62916.0,62911.0,0.02]
[1719845507560,0.00998897,62915.0,62913.0,0.02]
[1719845507764,0.00998897,62915.0,62909.0,0.16233898]
[1719845507765,0.00998897,62915.0,62914.0,0.02]
[1719845507988,0.01298897,62915.0,62914.0,0.02]
[1719845508178,0.01298897,62915.0,62913.0,0.02]
[1719845508179,0.02098897,62915.0,62913.0,0.02]
[1719845508667,0.01798897,62915.0,62909.0,0.18233898]
[1719845508833,0.01798897,62915.0,62908.0,0.178831]
[1719845509043,0.01798897,62915.0,62911.0,0.02]
[1719845509255,0.008,62915.0,62908.0,0.178831]
[1719845509393,0.008,62915.0,62912.0,0.02]
[1719845509595,0.008,62915.0,62911.0,0.02]
[1719845509934,0.0656,62919.0,62913.0,0.02]
[1719845510141,0.1,62933.0,62917.0,0.02]
[1719845510142,0.1474,62925.0,62917.0,0.02]